bitfinex-derivatives/quotes_BTCF0:USTF0_20241006
["timestamp","ask_amount","ask_price","bid_price","bid_amount"]
[1728194592874,0.426348,61972.0,61971.0,0.21739445]
[1728194594368,0.065548,61972.0,61971.0,0.21739445]
[1728194594567,0.065548,61972.0,61971.0,0.1368164]
[1728194594763,0.426348,61972.0,61971.0,0.1368164]
[1728194595473,0.065548,61972.0,61971.0,0.1368164]
[1728194595777,0.426348,61972.0,61971.0,0.1368164]
[1728194596171,0.065548,61972.0,61971.0,0.1368164]
[1728194597176,0.426348,61972.0,61971.0,0.1368164]
[1728194597477,0.065548,61972.0,61971.0,0.13683904]
[1728194598079,0.426348,61972.0,61971.0,0.13683904]
[1728194598978,0.065548,61972.0,61971.0,0.13683904]
[1728194599279,0.426348,61972.0,61971.0,0.13683904]
[1728194599468,0.065548,61972.0,61971.0,0.13683904]
[1728194600077,0.426348,61972.0,61971.0,0.13683904]
[1728194600574,0.065548,61972.0,61971.0,0.13683904]
[1728194600776,0.426348,61972.0,61971.0,0.13683904]
[1728194600970,0.065548,61972.0,61971.0,0.13684359]
[1728194601176,0.426348,61972.0,61971.0,0.13684359]
[1728194601674,0.065548,61972.0,61971.0,0.13684359]
[1728194602071,0.426348,61972.0,61971.0,0.13684359]
[1728194603179,0.065548,61972.0,61971.0,0.13684359]
[1728194606778,0.10134488,61972.0,61971.0,0.028]
[1728194607372,0.065548,61972.0,61971.0,0.028]
[1728194607582,0.10134494,61972.0,61971.0,0.028]
[1728194613790,0.065548,61972.0,61971.0,0.13682168]
[1728194616583,0.001,61972.0,61971.0,0.24682168]
[1728194616781,0.001,61972.0,61971.0,0.40796086]
[1728194617383,0.001,61972.0,61971.0,0.40783875]
[1728194617583,0.001,61972.0,61971.0,0.40786804]
[1728194617784,0.001,61972.0,61971.0,0.31124857]
[1728194618384,0.001,61972.0,61971.0,0.40786547]
[1728194619485,0.001,61972.0,61971.0,0.31124857]
[1728194619689,0.001,61972.0,61971.0,0.40786547]
[1728194620484,0.001,61972.0,61971.0,0.31124857]
[1728194621778,0.001,61972.0,61971.0,0.202549]
[1728194622198,0.001,61972.0,61971.0,0.26814338]
[1728194623891,0.001,61972.0,61971.0,0.22777761]
[1728194625688,0.001,61972.0,61971.0,0.202549]
[1728194625891,0.001,61972.0,61971.0,0.22777705]
[1728194628793,0.001,61972.0,61971.0,0.33630074]
[1728194629293,0.001,61972.0,61971.0,0.33630105]
[1728194630897,0.001,61972.0,61971.0,0.37666611]
[1728194631888,0.001,61972.0,61971.0,0.37662753]
[1728194636792,0.001,61972.0,61971.0,0.37666569]
[1728194637690,0.001,61972.0,61971.0,0.31107227]
[1728194638390,0.001,61972.0,61971.0,0.40768917]
[1728194639595,0.001,61972.0,61971.0,0.47328348]
[1728194640497,0.001,61972.0,61971.0,0.40768917]
[1728194640896,0.001,61972.0,61971.0,0.40773737]
[1728194641791,0.001,61972.0,61971.0,0.4481031]
[1728194641991,0.001,61972.0,61971.0,0.40773737]
[1728194643801,0.001,61972.0,61971.0,0.31644023]
[1728194644108,0.001,61972.0,61971.0,0.25084564]
[1728194646401,0.001,61972.0,61971.0,0.202549]
[1728194647398,0.001,61972.0,61971.0,0.22777777]
[1728194647703,0.001,61972.0,61971.0,0.202549]
[1728194649604,0.001,61972.0,61971.0,0.22777767]
[1728194649905,0.001,61972.0,61971.0,0.202549]
[1728194650100,0.001,61972.0,61971.0,0.22777768]
[1728194650908,0.001,61972.0,61971.0,0.33624742]
[1728194651905,0.001,61972.0,61971.0,0.31101874]
[1728194652104,0.001,61972.0,61971.0,0.33624752]
[1728194653098,0.001,61972.0,61971.0,0.31101874]
[1728194653300,0.001,61972.0,61971.0,0.33624743]
[1728194653500,0.001,61972.0,61971.0,0.31101874]
[1728194654010,0.001,61972.0,61971.0,0.47324688]
[1728194655101,0.001,61972.0,61971.0,0.37660806]
[1728194655508,0.001,61972.0,61971.0,0.47323903]
[1728194655710,0.001,61972.0,61971.0,0.37660806]
[1728194655914,0.001,61972.0,61971.0,0.31101317]
[1728194656306,0.001,61972.0,61971.0,0.37660743]
[1728194657514,0.001,61972.0,61971.0,0.47323488]
[1728194658209,0.001,61972.0,61971.0,0.37660743]
[1728194658910,0.001,61972.0,61971.0,0.26814326]
[1728194659507,0.001,61972.0,61971.0,0.33256155]
[1728194660611,0.0113,61976.0,61975.0,0.064545]
[1728194660811,0.3608,61979.0,61978.0,0.064542]
[1728194661012,0.3608,61979.0,61978.0,0.174542]
[1728194663007,0.436637,61983.0,61978.0,0.174542]
[1728194663318,0.075837,61983.0,61982.0,0.11]
[1728194663511,0.425337,61983.0,61982.0,0.11]
[1728194664609,0.425337,61983.0,61982.0,0.115]
[1728194664814,0.426337,61983.0,61982.0,0.115]
[1728194665407,0.425337,61983.0,61982.0,0.12]
[1728194666319,0.425337,61983.0,61982.0,0.14366552]
[1728194671817,0.064537,61983.0,61982.0,0.14366552]
[1728194688124,0.064537,61983.0,61982.0,0.22418839]
[1728194688927,0.064537,61983.0,61982.0,0.14366552]
[1728194690128,0.10102338,61983.0,61982.0,0.14366552]
[1728194694439,0.10102349,61983.0,61982.0,0.14366552]
[1728194696127,0.10102349,61983.0,61982.0,0.2518491]
[1728194696128,0.064537,61983.0,61982.0,0.2518491]
[1728194696324,0.064537,61983.0,61982.0,0.34847654]
[1728194696833,0.064537,61983.0,61982.0,0.2518491]
[1728194697033,0.064537,61983.0,61982.0,0.34847654]
[1728194697222,0.064537,61983.0,61982.0,0.2518491]
[1728194699234,0.064537,61983.0,61982.0,0.25215858]
[1728194700024,0.064537,61983.0,61982.0,0.25315858]
[1728194700025,0.065537,61983.0,61982.0,0.25315858]
[1728194700222,0.001,61983.0,61982.0,0.25315858]
[1728194700637,0.001,61983.0,61982.0,0.25615858]
[1728194700833,0.001,61983.0,61982.0,0.35278602]
[1728194701636,0.001,61983.0,61982.0,0.26015858]
[1728194701637,0.002,61983.0,61982.0,0.26015858]
[1728194704129,0.002,61983.0,61982.0,0.15166552]
[1728194704544,0.002,61983.0,61982.0,0.34063635]
[1728194704840,0.002,61983.0,61982.0,0.26015816]
[1728194705730,0.002,61983.0,61982.0,0.34062196]
[1728194706234,0.002,61983.0,61982.0,0.26015816]
[1728194706637,0.002,61983.0,61982.0,0.34061816]
[1728194706939,0.002,61983.0,61982.0,0.40515616]
[1728194710745,0.002,61983.0,61982.0,0.29666352]
[1728194710941,0.002,61983.0,61982.0,0.21620352]
[1728194712534,0.002,61983.0,61982.0,0.28178663]
[1728194714339,0.002,61983.0,61982.0,0.24142779]
[1728194715540,0.002,61983.0,61982.0,0.21620352]
[1728194715735,0.002,61983.0,61982.0,0.24142777]
[1728194716338,0.002,61983.0,61982.0,0.21620352]
[1728194718950,0.002,61983.0,61982.0,0.10620352]
[1728194719158,0.002,61983.0,61982.0,0.3246269]
[1728194722349,0.002,61983.0,61982.0,0.39021078]
[1728194725346,0.002,61983.0,61982.0,0.3246269]
[1728194725541,0.002,61983.0,61982.0,0.39021078]
[1728194725748,0.002,61983.0,61982.0,0.3246269]
[1728194727053,0.002,61983.0,61982.0,0.32463782]
[1728194727647,0.002,61983.0,61982.0,0.40511978]
[1728194727849,0.002,61983.0,61982.0,0.4051205]
[1728194728250,0.002,61983.0,61982.0,0.32463782]
[1728194734266,0.002,61983.0,61982.0,0.21620352]
[1728194741059,0.002,61983.0,61982.0,0.32467819]
[1728194748662,0.002,61983.0,61982.0,0.42130563]
[1728194749065,0.002,61983.0,61982.0,0.21620352]
[1728194749966,0.0113,61987.0,61986.0,0.064533]
[1728194750162,0.0113,61990.0,61989.0,0.06453]
[1728194750368,0.0113,61993.0,61990.0,0.064529]
[1728194750570,0.0113,61996.0,61993.0,0.11]
[1728194750759,0.03650168,61995.0,61993.0,0.064526]
[1728194751066,0.075823,61996.0,61994.0,0.11]
[1728194751368,0.0365376,61995.0,61994.0,0.11]
[1728194751571,0.075823,61996.0,61994.0,0.11]
[1728194752061,0.0113,61996.0,61994.0,0.11]
[1728194752971,0.006,61995.0,61994.0,0.11]
[1728194753463,0.0163,61996.0,61994.0,0.111]
[1728194754269,0.011,61995.0,61994.0,0.112]
[1728194754860,0.005,61995.0,61994.0,0.111]
[1728194755061,0.005,61995.0,61994.0,0.112]
[1728194755864,0.006,61995.0,61994.0,0.112]
[1728194756679,0.006,61995.0,61994.0,0.111]
[1728194756861,0.006,61995.0,61994.0,0.112]
[1728194756862,0.012,61995.0,61994.0,0.112]
[1728194757971,0.012,61995.0,61994.0,0.13568014]
[1728194759871,0.012,61995.0,61994.0,0.20020514]
[1728194760673,0.012,61995.0,61994.0,0.176525]
[1728194770080,0.012,61995.0,61994.0,0.066525]
[1728194775377,0.012,61995.0,61994.0,0.176525]
[1728194776281,0.012,61995.0,61994.0,0.22482938]
[1728194776481,0.012,61995.0,61994.0,0.176525]
[1728194776680,0.012,61995.0,61994.0,0.22482938]
[1728194777487,0.012,61995.0,61994.0,0.176525]
[1728194779593,0.012,61995.0,61994.0,0.24094236]
[1728194779978,0.012,61995.0,61994.0,0.176525]
[1728194780179,0.012,61995.0,61994.0,0.24094334]
[1728194780581,0.012,61995.0,61994.0,0.176525]
[1728194786277,0.09100459,61995.0,61994.0,0.176525]
[1728194787796,0.04855848,61995.0,61994.0,0.176525]
[1728194794200,0.012,61995.0,61994.0,0.36507954]
[1728194794704,0.012,61995.0,61994.0,0.176525]
[1728194794903,0.012,61995.0,61994.0,0.25704671]
[1728194795301,0.012,61995.0,61994.0,0.176525]
[1728194801701,0.0486372,61995.0,61994.0,0.176525]
[1728194801907,0.0911747,61995.0,61994.0,0.176525]
[1728194803103,0.012,61995.0,61994.0,0.176525]
[1728194803804,0.0486437,61995.0,61994.0,0.176525]
[1728194804004,0.09118875,61995.0,61994.0,0.176525]
[1728194809315,0.012,61995.0,61994.0,0.176525]
[1728194815112,0.012,61995.0,61994.0,0.36515556]
[1728194815807,0.012,61995.0,61994.0,0.28463385]
[1728194816414,0.012,61995.0,61994.0,0.176525]
[1728194819009,0.012,61995.0,61994.0,0.28231487]
[1728194819316,0.012,61995.0,61994.0,0.4307023]
[1728194820015,0.012,61995.0,61994.0,0.7915023]
[1728194820216,0.012,61995.0,61994.0,0.79150151]
[1728194820415,0.012,61995.0,61994.0,0.71092994]
[1728194820908,0.012,61995.0,61994.0,0.74199075]
[1728194821110,0.012,61995.0,61994.0,0.80755539]
[1728194821316,0.012,61995.0,61994.0,0.80755488]
[1728194821608,0.012,61995.0,61994.0,0.81562103]
[1728194822202,0.012,61995.0,61994.0,0.71899359]
[1728194822608,0.0113,61996.0,61995.0,0.064524]
[1728194822813,0.0038,62000.0,61999.0,0.06452]
[1728194823015,0.3646,62005.0,62000.0,0.064519]
[1728194823210,0.3608,62005.0,62004.0,0.11]
[1728194823412,0.3608,62005.0,62004.0,0.15831709]
[1728194824118,0.3608,62005.0,62004.0,0.11]
[1728194824319,0.07961319,62005.0,62004.0,0.11]
[1728194824515,0.0368401,62005.0,62004.0,0.11]
[1728194825120,0.0368401,62005.0,62004.0,0.111]
[1728194825121,0.0438401,62005.0,62004.0,0.111]
[1728194825323,0.04394888,62005.0,62004.0,0.111]
[1728194825927,0.04394888,62005.0,62004.0,0.175515]
[1728194826114,0.04394888,62005.0,62004.0,0.176515]
[1728194827123,0.03694888,62005.0,62004.0,0.175515]
[1728194827324,0.03694888,62005.0,62004.0,0.176515]
[1728194827710,0.0004,62006.0,62004.0,0.175515]
[1728194827915,0.001,62005.0,62004.0,0.176515]
[1728194830721,0.001,62005.0,62004.0,0.19919469]
[1728194839331,0.001,62005.0,62004.0,0.08919469]
[1728194839523,0.001,62005.0,62004.0,0.19919469]
[1728194849237,0.001,62005.0,62004.0,0.22440913]
[1728194850235,0.001,62005.0,62004.0,0.19919469]
[1728194850537,0.001,62005.0,62004.0,0.22440913]
[1728194853126,0.001,62005.0,62004.0,0.30493763]
[1728194853536,0.001,62005.0,62004.0,0.19919469]
[1728194853739,0.001,62005.0,62004.0,0.22440913]
[1728194855041,0.03812052,62005.0,62004.0,0.19919469]
[1728194861439,0.001,62005.0,62004.0,0.40361469]
[1728194864345,0.001,62005.0,62004.0,0.46917224]
[1728194865053,0.001,62005.0,62004.0,0.3725448]
[1728194866438,0.001,62005.0,62004.0,0.46929247]
[1728194866645,0.001,62005.0,62004.0,0.40373492]
[1728194866947,0.001,62005.0,62004.0,0.46928997]
[1728194867144,0.001,62005.0,62004.0,0.3725423]
[1728194869940,0.001,62005.0,62004.0,0.30698725]
[1728194870151,0.001,62005.0,62004.0,0.66778725]
[1728194870448,0.001,62005.0,62004.0,0.7988927]
[1728194870641,0.001,62005.0,62004.0,0.73333998]
[1728194870842,0.001,62005.0,62004.0,0.37253998]
[1728194871147,0.001,62005.0,62004.0,0.73333998]
[1728194874051,0.0004,62006.0,62004.0,0.66882498]
[1728194874356,0.0004,62006.0,62005.0,0.31844532]
[1728194874655,0.0004,62006.0,62005.0,0.67924532]
[1728194875738,0.0014,62006.0,62005.0,0.68024532]
[1728194876154,0.0014,62006.0,62005.0,0.68124532]
[1728194876350,0.0014,62006.0,62005.0,0.60065929]
[1728194876556,0.0014,62006.0,62005.0,0.49286673]
[1728194876749,0.03868659,62006.0,62005.0,0.49286673]
[1728194877548,0.03868659,62006.0,62005.0,0.60286673]
[1728194878251,0.03868468,62006.0,62005.0,0.60286673]
[1728194879459,0.03868468,62006.0,62005.0,0.56252659]
[1728194880047,0.03868468,62006.0,62005.0,0.537314]
[1728194880048,0.0014,62006.0,62005.0,0.537314]
[1728194880465,0.0014,62006.0,62005.0,0.56252658]
[1728194880659,0.0014,62006.0,62005.0,0.58773907]
[1728194880960,0.0014,62006.0,62005.0,0.58773896]
[1728194881156,0.0014,62006.0,62005.0,0.56252647]
[1728194883560,0.0014,62006.0,62005.0,0.6701203]
[1728194886362,0.0014,62006.0,62005.0,0.64490783]
[1728194886658,0.0014,62006.0,62005.0,0.71048354]
[1728194889962,0.0014,62006.0,62005.0,0.64493052]
[1728194890164,0.0014,62006.0,62005.0,0.71048295]
[1728194891260,0.0014,62006.0,62005.0,0.71051314]
[1728194891761,0.0014,62006.0,62005.0,0.60286643]
[1728194893264,0.03868504,62006.0,62005.0,0.60286643]
[1728194894466,0.03868504,62006.0,62005.0,0.56252647]
[1728194898666,0.0014,62006.0,62005.0,0.67017355]
[1728194898966,0.0014,62006.0,62005.0,0.56017355]
[1728194899375,0.0014,62006.0,62005.0,0.67017355]
[1728194900567,0.0014,62006.0,62005.0,0.64496108]
[1728194900767,0.0014,62006.0,62005.0,0.67017343]
[1728194901575,0.0014,62006.0,62005.0,0.7105132]
[1728194902989,0.0014,62006.0,62005.0,0.60286612]
[1728194903674,0.0014,62006.0,62005.0,0.71051831]
[1728194904070,0.0014,62006.0,62005.0,0.71051832]
[1728194907475,0.0014,62006.0,62005.0,0.71052456]
[1728194908487,0.0014,62006.0,62005.0,0.34972456]
[1728194909189,0.0014,62006.0,62005.0,0.71052456]
[1728194909482,0.0014,62006.0,62005.0,0.34972456]
[1728194909687,0.0014,62006.0,62005.0,0.71052456]
[1728194910586,0.0014,62006.0,62005.0,0.34972456]
[1728194910881,0.0014,62006.0,62005.0,0.71052456]
[1728194911283,0.0014,62006.0,62005.0,0.64497243]
[1728194911477,0.0014,62006.0,62005.0,0.71052457]
[1728194912380,0.0014,62006.0,62005.0,0.71051382]
[1728194912580,0.0014,62006.0,62005.0,0.34971382]
[1728194913083,0.0014,62006.0,62005.0,0.71051382]
[1728194913388,0.0014,62006.0,62005.0,0.34971382]
[1728194913578,0.0014,62006.0,62005.0,0.71051382]
[1728194914393,0.0014,62006.0,62005.0,0.60286614]
[1728194916078,0.0014,62006.0,62005.0,0.537314]
[1728194916591,0.0014,62006.0,62005.0,0.60286616]
[1728194918495,0.0014,62006.0,62005.0,0.24206616]
[1728194918688,0.0014,62006.0,62005.0,0.60286616]
[1728194918889,0.0014,62006.0,62005.0,0.24206616]
[1728194919199,0.0014,62006.0,62005.0,0.60286616]
[1728194921279,0.0405,62008.0,62005.0,0.77429507]
[1728194921494,0.0405,62008.0,62007.0,0.064512]
[1728194921693,0.033,62008.0,62007.0,0.62755465]
[1728194923190,0.033,62008.0,62007.0,0.98835465]
[1728194923787,0.033,62008.0,62007.0,0.62755465]
[1728194924092,0.033,62008.0,62007.0,0.98835465]
[1728194924288,0.033,62008.0,62007.0,1.01356702]
[1728194924488,0.033,62008.0,62007.0,1.01556702]
[1728194924893,0.033,62008.0,62007.0,0.65476702]
[1728194925092,0.033,62008.0,62007.0,1.01556702]
[1728194927095,0.033,62008.0,62007.0,1.01538578]
[1728194927297,0.033,62008.0,62007.0,0.75390581]
[1728194927599,0.033,62008.0,62007.0,0.86649191]
[1728194928392,0.033,62008.0,62007.0,0.39310581]
[1728194928699,0.033,62008.0,62007.0,0.75390581]
[1728194929394,0.033,62008.0,62007.0,0.62566476]
[1728194932001,0.033,62008.0,62007.0,0.53490023]
[1728194932193,0.033,62008.0,62007.0,0.62566477]
[1728194932395,0.033,62008.0,62007.0,0.6004524]
[1728194934503,0.033,62008.0,62007.0,0.2396524]
[1728194934703,0.033,62008.0,62007.0,0.6004524]
[1728194935498,0.033,62008.0,62007.0,0.2396524]
[1728194935698,0.033,62008.0,62007.0,0.6004524]
[1728194936501,0.033,62008.0,62007.0,0.8412598]
[1728194936899,0.033,62008.0,62007.0,0.84124334]
[1728194937303,0.033,62008.0,62007.0,0.99011437]
[1728194937806,0.033,62008.0,62007.0,0.62931437]
[1728194938007,0.033,62008.0,62007.0,0.99011437]
[1728194938596,0.033,62008.0,62007.0,0.9245622]
[1728194938899,0.033,62008.0,62007.0,0.99011437]
[1728194939608,0.033,62008.0,62007.0,1.01532674]
[1728194940496,0.033,62008.0,62007.0,0.77569117]
[1728194940696,0.033,62008.0,62007.0,0.73823435]
[1728194940900,0.033,62008.0,62007.0,1.01534593]
[1728194941112,0.033,62008.0,62007.0,0.92458139]
[1728194941312,0.033,62008.0,62007.0,1.05568573]
[1728194941817,0.033,62008.0,62007.0,1.03047336]
[1728194941995,0.033,62008.0,62007.0,1.05568395]
[1728194943705,0.033,62008.0,62007.0,0.7942212]
[1728194943912,0.033,62008.0,62007.0,0.9068073]
[1728194944413,0.033,62008.0,62007.0,0.66599343]
[1728194946707,0.033,62008.0,62007.0,0.64078106]
[1728194948414,0.0008,62009.0,62008.0,0.064511]
[1728194948715,0.0008,62009.0,62008.0,0.34764026]
[1728194949715,0.0008,62009.0,62008.0,0.34864026]
[1728194950013,0.0008,62009.0,62008.0,0.34964126]
[1728194950199,0.0008,62009.0,62008.0,0.71044126]
[1728194951518,0.0008,62009.0,62008.0,0.83866971]
[1728194954915,0.0008,62009.0,62008.0,0.86386523]
[1728194959116,0.0008,62009.0,62008.0,0.86386511]
[1728194962616,0.0004,62010.0,62008.0,0.83865277]
[1728194962821,0.0004,62010.0,62009.0,0.23618969]
[1728194963119,0.0004,62010.0,62009.0,0.30174178]
[1728194963709,0.0004,62010.0,62009.0,0.30170609]
[1728194964109,0.0004,62010.0,62009.0,0.66250609]
[1728194964511,0.0004,62010.0,62009.0,0.42675209]
[1728194964721,0.0004,62010.0,62009.0,0.66251318]
[1728194964925,0.0004,62010.0,62009.0,0.30171318]
[1728194965125,0.0004,62010.0,62009.0,0.66351318]
[1728194965622,0.0004,62010.0,62009.0,0.66451318]
[1728194966226,0.0004,62010.0,62009.0,0.59896109]
[1728194966413,0.0004,62010.0,62009.0,0.53630931]
[1728194967222,0.0004,62010.0,62009.0,0.61689993]
[1728194969922,0.0004,62010.0,62009.0,0.25610017]
[1728194970125,0.0004,62010.0,62009.0,0.61690017]
[1728194970915,0.0004,62010.0,62009.0,0.25610017]
[1728194971126,0.0004,62010.0,62009.0,0.61690017]
[1728194973423,0.0004,62010.0,62009.0,0.55134774]
[1728194973626,0.0004,62010.0,62009.0,0.59895083]
[1728194974030,0.0004,62010.0,62009.0,0.66450326]
[1728194977022,0.0004,62010.0,62009.0,0.59895083]
[1728194977220,0.0004,62010.0,62009.0,0.63929067]
[1728194977425,0.0004,62010.0,62009.0,0.66450307]
[1728194979432,0.0004,62010.0,62009.0,0.66448992]
[1728194981339,0.0004,62010.0,62009.0,0.30368992]
[1728194981526,0.0004,62010.0,62009.0,0.61687959]
[1728194984136,0.0004,62010.0,62009.0,0.61687966]
[1728194984338,0.0004,62010.0,62009.0,0.61687969]
[1728194984539,0.0004,62010.0,62009.0,0.25607969]
[1728194984728,0.0004,62010.0,62009.0,0.61687969]
[1728194988640,0.0004,62010.0,62009.0,0.66449256]
[1728194990741,0.0004,62010.0,62009.0,0.59894022]
[1728194990937,0.0004,62010.0,62009.0,0.66449255]
[1728194992437,0.0004,62010.0,62009.0,0.30369255]
[1728194992641,0.0004,62010.0,62009.0,0.66449255]
[1728194993843,0.0004,62010.0,62009.0,0.42875233]
[1728194994039,0.0004,62010.0,62009.0,0.66479143]
[1728194994245,0.0004,62010.0,62009.0,0.66479195]
[1728194996948,0.0004,62010.0,62009.0,0.30399195]
[1728194997138,0.0004,62010.0,62009.0,0.66479195]
[1728195001747,0.0004,62010.0,62009.0,0.30399195]
[1728195001953,0.0004,62010.0,62009.0,0.66479195]
[1728195002252,0.0004,62010.0,62009.0,0.66374862]
[1728195003545,0.0004,62010.0,62009.0,0.427709]
[1728195004458,0.0004,62010.0,62009.0,0.066909]
[1728195004754,0.0004,62010.0,62009.0,0.427709]
[1728195005751,0.0004,62010.0,62009.0,0.066909]
[1728195005952,0.0004,62010.0,62009.0,0.427709]
[1728195006251,0.0004,62010.0,62009.0,0.066909]
[1728195006453,0.0004,62010.0,62009.0,0.427709]
[1728195007856,0.02056995,62010.0,62009.0,0.427309]
[1728195008054,0.02056995,62010.0,62009.0,0.14532962]
[1728195008564,0.02056995,62010.0,62009.0,0.064509]
[1728195008758,0.0004,62010.0,62008.0,0.00306438]
[1728195008958,0.0004,62010.0,62009.0,0.11]
[1728195009359,0.0004,62010.0,62008.0,0.07039018]
[1728195009561,0.0004,62010.0,62009.0,0.174509]
[1728195010066,0.02561244,62010.0,62009.0,0.00306439]
[1728195010664,0.02561244,62010.0,62009.0,0.17757339]
[1728195011065,0.02561244,62010.0,62008.0,0.03617904]
[1728195011362,0.02661244,62010.0,62009.0,0.11]
[1728195011558,0.02661244,62010.0,62009.0,0.40984945]
[1728195012061,0.02661244,62010.0,62009.0,0.40984941]
[1728195012257,0.02761244,62010.0,62009.0,0.29984941]
[1728195012664,0.02861244,62010.0,62009.0,0.30084941]
[1728195012857,0.02861244,62010.0,62009.0,0.13040479]
[1728195013061,0.02861244,62010.0,62009.0,0.24040479]
[1728195013459,0.02861244,62010.0,62009.0,0.08913012]
[1728195014355,0.02861244,62010.0,62009.0,0.14116091]
[1728195014558,0.02861244,62010.0,62009.0,0.31566991]
[1728195014752,0.02761244,62010.0,62009.0,0.31666991]
[1728195014956,0.02661244,62010.0,62009.0,0.43364713]
[1728195015467,0.02561244,62010.0,62009.0,0.43264713]
[1728195015669,0.02661244,62010.0,62009.0,0.43364713]
[1728195015865,0.0014,62010.0,62009.0,0.43364713]
[1728195017067,0.0014,62010.0,62009.0,0.38322225]
[1728195017655,0.0014,62010.0,62009.0,0.20172144]
[1728195017854,0.0014,62010.0,62009.0,0.35801381]
[1728195018061,0.0075,62011.0,62009.0,0.40846307]
[1728195018264,0.0075,62011.0,62010.0,0.20671693]
[1728195018558,0.0079,62014.0,62010.0,0.20671693]
[1728195018756,0.0079,62014.0,62013.0,0.06448035]
[1728195019061,0.0004,62014.0,62013.0,0.13003266]
[1728195020466,0.0004,62014.0,62013.0,0.06555231]
[1728195020960,0.0004,62014.0,62013.0,0.06655231]
[1728195020961,0.0014,62014.0,62013.0,0.06655231]
[1728195021159,0.0024,62014.0,62013.0,0.06755231]
[1728195021371,0.0024,62014.0,62013.0,0.002]
[1728195021567,0.0024,62014.0,62013.0,0.06755188]
[1728195022066,0.0024,62014.0,62013.0,0.0917111]
[1728195022769,0.0024,62014.0,62013.0,0.02721226]
[1728195023564,0.0024,62014.0,62013.0,0.09171109]
[1728195023765,0.0024,62014.0,62013.0,0.20171109]
[1728195023960,0.0024,62014.0,62013.0,0.02721226]
[1728195024176,0.066904,62014.0,62013.0,0.02721226]
[1728195024473,0.066904,62014.0,62013.0,0.11474993]
[1728195024474,0.176904,62014.0,62013.0,0.11474993]
[1728195024670,0.209304,62014.0,62013.0,0.05025057]
[1728195024871,0.209304,62014.0,62013.0,0.05025055]
[1728195025082,0.209304,62014.0,62013.0,0.02503831]
[1728195026573,0.209304,62014.0,62013.0,0.002]
[1728195026768,0.064507,62011.0,62010.0,0.0113]
[1728195026972,0.174507,62011.0,62010.0,0.02521289]
[1728195027274,0.174507,62011.0,62007.0,0.03649618]
[1728195027577,0.4708,62008.0,62007.0,0.03649618]
[1728195027778,0.4708,62008.0,61995.0,0.0318]
[1728195027779,0.4708,62008.0,62004.0,0.03649618]
[1728195027964,0.11,62005.0,62004.0,0.0113]
[1728195028274,0.174514,62005.0,62003.0,0.02519618]
[1728195028476,0.064516,62003.0,62002.0,0.02519618]
[1728195028676,0.174516,62003.0,62001.0,0.03649618]
[1728195028972,0.174516,62003.0,62001.0,0.05977595]
[1728195029175,0.174516,62003.0,62001.0,0.03457977]
[1728195030172,0.0321,62002.0,62001.0,0.03457977]
[1728195030377,0.0633,62002.0,62001.0,0.04849636]
[1728195031067,0.0633,62002.0,62001.0,0.04949636]
[1728195031572,0.0663,62002.0,62001.0,0.04949636]
[1728195031878,0.0693,62002.0,62001.0,0.02527977]
[1728195035379,0.0693,62002.0,62001.0,0.002]
[1728195036970,0.4301,62002.0,62001.0,0.002]
[1728195039182,0.3989,62002.0,62001.0,0.112]
[1728195039481,0.3989,62002.0,62001.0,0.10690976]
[1728195039871,0.3989,62002.0,62001.0,0.21690976]
[1728195041175,0.3989,62002.0,62001.0,0.34196391]
[1728195044583,0.3989,62002.0,62001.0,0.23196391]
[1728195046486,0.0381,62002.0,62001.0,0.23196391]
[1728195047094,0.0381,62002.0,62001.0,0.34795776]
[1728195047281,0.0381,62002.0,62001.0,0.23196391]
[1728195047784,0.0381,62002.0,62001.0,0.2317915]
[1728195052687,0.0381,62002.0,62001.0,0.2319244]
[1728195056288,0.0381,62002.0,62001.0,0.10787746]
[1728195057098,0.0381,62002.0,62001.0,0.10787748]
[1728195059398,0.0381,62002.0,62001.0,0.21278982]
[1728195059602,0.0381,62002.0,62001.0,0.21279162]
[1728195059988,0.0381,62002.0,62001.0,0.10787748]
[1728195060194,0.0381,62002.0,62001.0,0.08266089]
[1728195063505,0.0381,62002.0,62001.0,0.002]
[1728195064198,0.0381,62002.0,62001.0,0.2320516]
[1728195067401,0.0381,62002.0,62001.0,0.25726819]
[1728195068405,0.0381,62002.0,62001.0,0.2320516]
[1728195068706,0.0381,62002.0,62001.0,0.25726819]
[1728195070700,0.0381,62002.0,62001.0,0.25721854]
[1728195075402,0.0381,62002.0,62001.0,0.23200195]
[1728195075603,0.0381,62002.0,62001.0,0.23200596]
[1728195079300,0.0381,62002.0,62001.0,0.002]
[1728195082504,0.0381,62002.0,62001.0,0.02721669]
[1728195086213,0.0381,62002.0,62001.0,0.25750099]
[1728195087515,0.0381,62002.0,62001.0,0.25750116]
[1728195089717,0.0381,62002.0,62001.0,0.2322843]
[1728195090317,0.0381,62002.0,62001.0,0.002]
[1728195090510,0.0381,62002.0,62001.0,0.23229024]
[1728195094222,0.0381,62002.0,62001.0,0.002]
[1728195097722,0.0381,62002.0,62001.0,0.02721689]
[1728195100836,0.0381,62002.0,62001.0,0.002]
[1728195101034,0.0381,62002.0,62001.0,0.0272169]
[1728195101232,0.0381,62002.0,62001.0,0.25740798]
[1728195104237,0.0381,62002.0,62001.0,0.23219108]
[1728195104535,0.0381,62002.0,62001.0,0.25740803]
[1728195109332,0.0381,62002.0,62001.0,0.02721695]
[1728195112842,0.0381,62002.0,62001.0,0.002]
[1728195116438,0.0381,62002.0,62001.0,0.23222834]
[1728195119847,0.0381,62002.0,62001.0,0.25744524]
[1728195120837,0.0381,62002.0,62001.0,0.23222834]
[1728195121040,0.0381,62002.0,62001.0,0.25744524]
[1728195123345,0.0381,62002.0,62001.0,0.0272169]
[1728195123546,0.0381,62002.0,62001.0,0.25824978]